[Event "4th EFE Metz Festival-WIM"]
[Site "Metz"]
[Date "2018.07.27"]
[Round "7"]
[White "Terbe, Zsuzsanna"]
[Black "Moskalets, Svetlana"]
[Result "1-0"]
[ECO "A05"]
[WhiteElo "2178"]
[BlackElo "2208"]
[Annotator "NA"]
[PlyCount "59"]
[EventDate "2018.07.22"]
[EventType "tourn"]
[EventCountry "FRA"]
[SourceTitle "playchess.com"]
[Source "ChessBase"]
[SourceQuality "1"]
[TimeControl "5400+30"]

1. Nf3 {[%emt 0:00:00]} Nf6 {[%emt 0:06:15]} 2. g3 {[%emt 0:00:00]} b6 {[%emt 0:02:24]} 3. Bg2 {[%emt 0:00:01]} Bb7 {[%emt 0:00:01]} 4. O-O {[%emt 0:00:10]} e6 {[%emt 0:00:14]} 5. c4 {[%emt 0:00:07]} Be7 {[%emt 0:00:06]} 6. Nc3 {[%emt 0:00:06]} O-O {[%emt 0:00:19]} 7. Re1 {[%emt 0:00:05]} d6 {[%emt 0:03:14]} 8. e4 {[%emt 0:01:35]} c5 {[%emt 0:17:31]} 9. d4 {[%emt 0:00:29]} cxd4 {[%emt 0:01:35]} 10. Nxd4 {[%emt 0:00:10]} Qd7 {[%emt 0:00:49]} 11. b3 {[%emt 0:07:57]} Nc6 {[%emt 0:03:07]} 12. Bb2 {[%emt 0:00:56]} a6 {[%emt 0:01:28]} 13. Qd2 {[%emt 0:02:05]} Rfd8 {[%emt 0:01:23]} 14. Rad1 {[%emt 0:00:36]} Rac8 {[%emt 0:01:42]} 15. h3 {[%emt 0:02:15]} Qc7 {[%emt 0:00:55]} 16. Rc1 {[%emt 0:08:46]} Qb8 {[%emt 0:02:18]} 17. Nxc6 {[%emt 0:02:11]} Bxc6 {[%emt 0:00:28]} 18. Nd5 {[%emt 0:00:53]} Nxd5 {[%emt 0:16:21]} 19. exd5 {[%emt 0:01:44]} Bd7 {[%emt 0:00:12]} 20. dxe6 {[%emt 0:03:39]} fxe6 {[%emt 0:00:13]} 21. Bd5 {[%emt 0:01:06]} Bf8 {[%emt 0:00:26]} 22. Bxe6+ {[%emt 0:01:48]} Bxe6 {[%emt 0:00:06]} 23. Rxe6 {[%emt 0:00:05]} b5 {[%emt 0:01:34]} 24. Qd4 {[%emt 0:12:36]} bxc4 {[%emt 0:01:40]} 25. bxc4 {[%emt 0:09:04]} Rc5 {[%emt 0:01:57]} 26. Rce1 {[%emt 0:03:28]} Qc8 {[%emt 0:01:07]} 27. Re7 {[%emt 0:06:37]} Re5 {[%emt 0:06:31]} 28. R1xe5 {[%emt 0:06:16]} dxe5 {[%emt 0:00:02]} 29. Qxe5 {[%emt 0:00:13]} Rd1+ {[%emt 0:03:47]} 30. Kh2 {[%emt 0:00:39]} 1-0

[Event "4th EFE Metz Festival-WIM"]
[Site "Metz"]
[Date "2018.07.27"]
[Round "7"]
[White "Thomas, Anysia"]
[Black "Zozulia, Anna"]
[Result "1-0"]
[ECO "A43"]
[WhiteElo "2156"]
[BlackElo "2300"]
[Annotator "NA"]
[PlyCount "63"]
[EventDate "2018.07.22"]
[EventType "tourn"]
[EventCountry "FRA"]
[SourceTitle "playchess.com"]
[Source "ChessBase"]
[SourceQuality "1"]
[TimeControl "5400+30"]

1. d4 {[%emt 0:00:00]} c5 {[%emt 0:06:09]} 2. d5 {[%emt 0:00:00]} d6 {[%emt 0:00:19]} 3. e4 {[%emt 0:01:36]} Nf6 {[%emt 0:01:12]} 4. Nc3 {[%emt 0:00:06]} g6 {[%emt 0:00:18]} 5. Bb5+ {[%emt 0:00:16]} Bd7 {[%emt 0:02:14]} 6. a4 {[%emt 0:00:15]} Bg7 {[%emt 0:00:20]} 7. h3 {[%emt 0:00:16]} O-O {[%emt 0:01:41]} 8. Nf3 {[%emt 0:00:31]} e5 {[%emt 0:11:59]} 9. Bg5 {[%emt 0:12:12]} h6 {[%emt 0:03:17]} 10. Be3 {[%emt 0:00:39]} Kh7 {[%emt 0:12:28]} 11. g4 {[%emt 0:08:46]} Bxb5 {[%emt 0:02:30]} 12. axb5 {[%emt 0:00:19]} Nbd7 {[%emt 0:00:18]} 13. h4 {[%emt 0:04:34]} Kg8 {[%emt 0:33:17]} 14. Rg1 {[%emt 0:10:08]} h5 {[%emt 0:01:18]} 15. gxh5 {[%emt 0:01:32]} Nxh5 {[%emt 0:00:04]} 16. Bg5 {[%emt 0:05:28]} Qe8 {[%emt 0:00:46]} 17. Qd2 {[%emt 0:03:20]} f5 {[%emt 0:06:32]} 18. Bh6 {[%emt 0:10:49]} fxe4 {[%emt 0:05:02]} 19. Bxg7 {[%emt 0:05:21]} Kxg7 {[%emt 0:02:59]} 20. Ng5 {[%emt 0:02:18]} Nf4 {[%emt 0:00:06]} 21. h5 {[%emt 0:03:37]} Rh8 {[%emt 0:02:46]} 22. Ne6+ {[%emt 0:12:11]} Nxe6 {[%emt 0:00:04]} 23. dxe6 {[%emt 0:00:01]} Nf8 {[%emt 0:04:17]} 24. Qxd6 {[%emt 0:01:09]} Rxh5 {[%emt 0:00:44]} 25. e7 {[%emt 0:05:29]} Nd7 {[%emt 0:00:04]} 26. Nxe4 {[%emt 0:00:21]} Rf5 {[%emt 0:01:36]} 27. O-O-O {[%emt 0:00:51]} Nf6 {[%emt 0:00:55]} 28. Nxf6 {[%emt 0:00:06]} Rxf6 {[%emt 0:00:03]} 29. Qxe5 {[%emt 0:00:14]} Kf7 {[%emt 0:00:37]} 30. Qd5+ {[%emt 0:01:18]} Re6 {[%emt 0:00:12]} 31. Rge1 {[%emt 0:01:11]} Qxe7 {[%emt 0:00:19]} 32. Rxe6 {[%emt 0:00:05]} 1-0

[Event "4th EFE Metz Festival-WIM"]
[Site "Metz"]
[Date "2018.07.27"]
[Round "7"]
[White "Broly, Mathilde"]
[Black "Schweitzer, Victoria"]
[Result "1-0"]
[ECO "B07"]
[WhiteElo "2149"]
[BlackElo "2097"]
[Annotator "NA"]
[PlyCount "115"]
[EventDate "2018.07.22"]
[EventType "tourn"]
[EventCountry "FRA"]
[SourceTitle "playchess.com"]
[Source "ChessBase"]
[SourceQuality "1"]
[TimeControl "5400+30"]

1. e4 {[%emt 0:00:00]} d6 {[%emt 0:00:06]} 2. d4 {[%emt 0:00:09]} Nf6 {[%emt 0:00:06]} 3. Nc3 {[%emt 0:01:15]} g6 {[%emt 0:00:06]} 4. Be3 {[%emt 0:01:25]} c6 {[%emt 0:00:29]} 5. Nf3 {[%emt 0:00:56]} Bg7 {[%emt 0:03:01]} 6. h3 {[%emt 0:02:58]} O-O {[%emt 0:00:28]} 7. Qd2 {[%emt 0:00:15]} b5 {[%emt 0:00:37]} 8. Bd3 {[%emt 0:04:04]} a6 {[%emt 0:02:50]} 9. O-O {[%emt 0:07:00]} Re8 {[%emt 0:01:48]} 10. e5 {[%emt 0:03:45]} dxe5 {[%emt 0:04:45]} 11. Nxe5 {[%emt 0:01:28]} Qd6 {[%emt 0:03:40]} 12. f4 {[%emt 0:02:01]} Nbd7 {[%emt 0:03:38]} 13. Ne4 {[%emt 0:06:04]} Nxe4 {[%emt 0:02:03]} 14. Bxe4 {[%emt 0:00:06]} Bb7 {[%emt 0:00:57]} 15. Nxd7 {[%emt 0:09:01]} Qxd7 {[%emt 0:00:24]} 16. c3 {[%emt 0:00:14]} Rad8 {[%emt 0:09:20]} 17. Qf2 {[%emt 0:12:42]} f5 {[%emt 0:03:37]} 18. Bc2 {[%emt 0:01:15]} a5 {[%emt 0:01:06]} 19. a4 {[%emt 0:01:58]} Ra8 {[%emt 0:09:39]} 20. Bb3+ {[%emt 0:04:14]} e6 {[%emt 0:00:48]} 21. Rfe1 {[%emt 0:02:00]} Qd6 {[%emt 0:00:39]} 22. h4 {[%emt 0:03:50]} h5 {[%emt 0:01:35]} 23. Rad1 {[%emt 0:02:10]} bxa4 {[%emt 0:01:33]} 24. Bxa4 {[%emt 0:00:08]} Bf6 {[%emt 0:04:52]} 25. Bc1 {[%emt 0:08:21]} Qd5 {[%emt 0:03:13]} 26. Rd2 {[%emt 0:02:15]} Ba6 {[%emt 0:02:08]} 27. b3 {[%emt 0:02:13]} Rac8 {[%emt 0:00:49]} 28. c4 {[%emt 0:02:56]} Qd8 {[%emt 0:00:34]} 29. g3 {[%emt 0:00:07]} Rc7 {[%emt 0:02:09]} 30. Ba3 {[%emt 0:01:15]} Bb7 {[%emt 0:03:20]} 31. Bc5 {[%emt 0:01:05]} Rd7 {[%emt 0:01:26]} 32. Red1 {[%emt 0:00:43]} Be7 {[%emt 0:13:45]} 33. Bxe7 {[%emt 0:02:13]} Rexe7 {[%emt 0:06:25]} 34. Qe3 {[%emt 0:00:57]} Rd6 {[%emt 0:00:53]} 35. Qe5 {[%emt 0:00:53]} Kf7 {[%emt 0:00:17]} 36. Qc5 {[%emt 0:01:13]} Qc7 {[%emt 0:01:32]} 37. Kf2 {[%emt 0:01:46]} Rdd7 {[%emt 0:03:01]} 38. Re2 {[%emt 0:00:19]} Qd8 {[%emt 0:00:51]} 39. Re5 {[%emt 0:01:03]} Re8 {[%emt 0:05:31]} 40. Ke3 {[%emt 0:00:25]} Rg8 {[%emt 0:03:22]} 41. Qxa5 {[%emt 0:00:44]} Qb8 {[%emt 0:00:48]} 42. Qb6 {[%emt 0:03:06]} Rc7 {[%emt 0:00:44]} 43. Ra5 {[%emt 0:01:13]} Qc8 {[%emt 0:00:40]} 44. Ra7 {[%emt 0:01:14]} Re7 {[%emt 0:00:54]} 45. b4 {[%emt 0:00:58]} Rd8 {[%emt 0:01:05]} 46. Ra5 {[%emt 0:02:03]} Ba8 {[%emt 0:00:55]} 47. Qc5 {[%emt 0:00:58]} Qb8 {[%emt 0:00:34]} 48. b5 {[%emt 0:00:43]} cxb5 {[%emt 0:00:38]} 49. Rxb5 {[%emt 0:00:07]} Rb7 {[%emt 0:00:13]} 50. Rdb1 {[%emt 0:00:21]} Rc8 {[%emt 0:00:53]} 51. Rxb7+ {[%emt 0:01:05]} Bxb7 {[%emt 0:00:01]} 52. Qb6 {[%emt 0:00:19]} Rc7 {[%emt 0:01:09]} 53. Bc6 {[%emt 0:00:07]} Rxc6 {[%emt 0:00:32]} 54. Qxc6 {[%emt 0:00:04]} Qxf4+ {[%emt 0:00:16]} 55. Kxf4 {[%emt 0:00:14]} Bxc6 {[%emt 0:00:01]} 56. Ke5 {[%emt 0:00:13]} Ke7 {[%emt 0:00:18]} 57. Rb6 {[%emt 0:00:12]} Ba8 {[%emt 0:00:24]} 58. Rxe6+ {[%emt 0:00:08] Ke8} 1-0

[Event "4th EFE Metz Festival-WIM"]
[Site "Metz"]
[Date "2018.07.27"]
[Round "7"]
[White "Afraoui, Anaelle"]
[Black "Soubirou, Oriane"]
[Result "1/2-1/2"]
[ECO "B06"]
[WhiteElo "2056"]
[BlackElo "2105"]
[Annotator "NA"]
[PlyCount "76"]
[EventDate "2018.07.22"]
[EventType "tourn"]
[EventCountry "FRA"]
[SourceTitle "playchess.com"]
[Source "ChessBase"]
[SourceQuality "1"]
[TimeControl "5400+30"]

1. e4 {[%emt 0:00:00]} g6 {[%emt 0:25:52]} 2. d4 {[%emt 0:00:00]} Nf6 {[%emt 0:00:11]} 3. Nc3 {[%emt 0:00:00]} d5 {[%emt 0:00:16]} 4. e5 {[%emt 0:10:10]} Ne4 {[%emt 0:01:06]} 5. Nce2 {[%emt 0:02:38]} f6 {[%emt 0:03:15]} 6. f3 {[%emt 0:13:27]} Ng5 {[%emt 0:00:29]} 7. Be3 {[%emt 0:02:58]} Nf7 {[%emt 0:03:43]} 8. exf6 {[%emt 0:03:46]} exf6 {[%emt 0:00:13]} 9. Qd2 {[%emt 0:00:25]} Nc6 {[%emt 0:04:03]} 10. O-O-O {[%emt 0:00:23]} Nd6 {[%emt 0:07:59]} 11. Nc3 {[%emt 0:02:21]} Be6 {[%emt 0:02:49]} 12. h4 {[%emt 0:03:29]} Qd7 {[%emt 0:02:24]} 13. Nh3 {[%emt 0:01:55]} O-O-O {[%emt 0:01:59]} 14. Nf4 {[%emt 0:01:13]} Nf5 {[%emt 0:01:40]} 15. Bf2 {[%emt 0:04:36]} Bh6 {[%emt 0:02:18]} 16. g4 {[%emt 0:01:08]} Qd6 {[%emt 0:01:38]} 17. Nce2 {[%emt 0:00:46]} Nfe7 {[%emt 0:21:34]} 18. g5 {[%emt 0:09:07]} fxg5 {[%emt 0:00:43]} 19. Nxe6 {[%emt 0:00:06]} Qxe6 {[%emt 0:00:28]} 20. hxg5 {[%emt 0:00:06]} Bg7 {[%emt 0:00:26]} 21. Bh3 {[%emt 0:03:10]} Nf5 {[%emt 0:00:08]} 22. Nf4 {[%emt 0:00:57]} Qf7 {[%emt 0:02:46]} 23. Rde1 {[%emt 0:05:43]} Rd6 {[%emt 0:02:14]} 24. Re2 {[%emt 0:03:04]} Kb8 {[%emt 0:02:29]} 25. c3 {[%emt 0:00:51]} h6 {[%emt 0:01:59]} 26. Bxf5 {[%emt 0:10:58]} Qxf5 {[%emt 0:00:37]} 27. Rhe1 {[%emt 0:01:01]} hxg5 {[%emt 0:04:47]} 28. Ne6 {[%emt 0:03:09]} Bf6 {[%emt 0:00:09]} 29. Bg3 {[%emt 0:00:57]} Rd7 {[%emt 0:00:17]} 30. b4 {[%emt 0:07:30]} b6 {[%emt 0:01:37]} 31. Kb2 {[%emt 0:00:47]} Rc8 {[%emt 0:01:23]} 32. Bh2 {[%emt 0:02:50]} Be7 {[%emt 0:00:37]} 33. Rg2 {[%emt 0:02:21]} Qxf3 {[%emt 0:01:04]} 34. Nxg5 {[%emt 0:00:26]} Qf8 {[%emt 0:01:12]} 35. Re6 {[%emt 0:01:31]} Bd6 {[%emt 0:02:51]} 36. Rxg6 {[%emt 0:00:52]} a5 {[%emt 0:00:29]} 37. b5 {[%emt 0:01:44]} Na7 {[%emt 0:00:02]} 38. a4 {[%emt 0:00:32]} Kb7 {[%emt 0:00:31]} 1/2-1/2

[Event "4th EFE Metz Festival-WIM"]
[Site "Metz"]
[Date "2018.07.28"]
[Round "8"]
[White "Zozulia, Anna"]
[Black "Terbe, Zsuzsanna"]
[Result "1/2-1/2"]
[ECO "C48"]
[WhiteElo "2300"]
[BlackElo "2178"]
[Annotator "NA"]
[PlyCount "60"]
[EventDate "2018.07.22"]
[EventType "tourn"]
[EventCountry "FRA"]
[SourceTitle "playchess.com"]
[Source "ChessBase"]
[SourceQuality "1"]
[TimeControl "5400+30"]

1. e4 {[%emt 0:00:00]} e5 {[%emt 0:00:10]} 2. Nf3 {[%emt 0:00:09]} Nc6 {[%emt 0:00:07]} 3. Nc3 {[%emt 0:03:27]} Nf6 {[%emt 0:00:50]} 4. Bb5 {[%emt 0:00:06]} Bc5 {[%emt 0:00:28]} 5. O-O {[%emt 0:01:09]} O-O {[%emt 0:00:18]} 6. d3 {[%emt 0:00:28]} Nd4 {[%emt 0:05:30]} 7. Ba4 {[%emt 0:28:18]} d6 8. Nxd4 {[%emt 0:12:14]} exd4 {[%emt 0:02:13]} 9. Ne2 {[%emt 0:07:21]} h6 {[%emt 0:02:34]} 10. c3 {[%emt 0:02:16]} dxc3 {[%emt 0:00:43]} 11. bxc3 {[%emt 0:01:12]} Bb6 {[%emt 0:09:10]} 12. Qc2 {[%emt 0:03:40]} c6 {[%emt 0:05:30]} 13. d4 {[%emt 0:01:25]} Re8 {[%emt 0:00:09]} 14. Ng3 {[%emt 0:00:04]} Nxe4 {[%emt 0:18:59]} 15. Nxe4 {[%emt 0:00:09]} Bf5 {[%emt 0:00:04]} 16. f3 {[%emt 0:00:43]} d5 {[%emt 0:02:12]} 17. Qf2 {[%emt 0:02:55]} dxe4 {[%emt 0:00:35]} 18. fxe4 {[%emt 0:00:04]} Bxe4 {[%emt 0:07:22]} 19. Qxf7+ {[%emt 0:00:10]} Kh8 {[%emt 0:00:04]} 20. Bb3 {[%emt 0:07:05]} Rf8 {[%emt 0:09:00]} 21. Qxf8+ {[%emt 0:00:58]} Qxf8 {[%emt 0:00:06]} 22. Rxf8+ {[%emt 0:00:03]} Rxf8 {[%emt 0:00:05]} 23. Ba3 {[%emt 0:01:47]} Rf5 {[%emt 0:02:32]} 24. Re1 {[%emt 0:03:20]} Bd3 {[%emt 0:00:47]} 25. Be6 {[%emt 0:01:03]} Rb5 {[%emt 0:05:01]} 26. Kf2 {[%emt 0:06:12]} Kh7 {[%emt 0:02:40]} 27. Re3 {[%emt 0:08:20]} Bg6 {[%emt 0:01:48]} 28. Kf3 {[%emt 0:04:36]} Rb1 {[%emt 0:02:13]} 29. Bd6 {[%emt 0:00:27]} Bd8 {[%emt 0:02:04]} 30. g4 {[%emt 0:01:57]} Bg5 {[%emt 0:03:52] Ke4} 1/2-1/2

[Event "4th EFE Metz Festival-WIM"]
[Site "Metz"]
[Date "2018.07.28"]
[Round "8"]
[White "Moskalets, Svetlana"]
[Black "Terbe, Julianna"]
[Result "1/2-1/2"]
[ECO "C96"]
[WhiteElo "2208"]
[BlackElo "2238"]
[Annotator "NA"]
[PlyCount "65"]
[EventDate "2018.07.22"]
[EventType "tourn"]
[EventCountry "FRA"]
[SourceTitle "playchess.com"]
[Source "ChessBase"]
[SourceQuality "1"]
[TimeControl "5400+30"]

1. e4 {[%emt 0:00:00]} e5 {[%emt 0:00:08]} 2. Nf3 {[%emt 0:00:00]} Nc6 {[%emt 0:00:07]} 3. Bb5 {[%emt 0:02:02]} a6 {[%emt 0:00:14]} 4. Ba4 {[%emt 0:07:40]} Nf6 {[%emt 0:00:09]} 5. O-O {[%emt 0:00:25]} Be7 {[%emt 0:00:04]} 6. Re1 {[%emt 0:00:15]} b5 {[%emt 0:00:12]} 7. Bb3 {[%emt 0:00:09]} d6 {[%emt 0:00:04]} 8. c3 {[%emt 0:00:36]} O-O {[%emt 0:00:07]} 9. h3 {[%emt 0:00:05]} Na5 {[%emt 0:00:12]} 10. Bc2 {[%emt 0:00:01]} c5 {[%emt 0:00:12]} 11. d4 {[%emt 0:01:01]} Nd7 {[%emt 0:00:05]} 12. Nbd2 {[%emt 0:02:12]} exd4 {[%emt 0:00:21]} 13. cxd4 {[%emt 0:01:32]} Nc6 14. Nf1 {[%emt 0:13:34]} cxd4 {[%emt 0:00:20]} 15. Nxd4 {[%emt 0:00:28]} Nxd4 16. Qxd4 {[%emt 0:00:02]} Ne5 {[%emt 0:00:15]} 17. Qd1 {[%emt 0:01:40]} Bf6 {[%emt 0:00:31]} 18. Ne3 {[%emt 0:04:14]} Be6 {[%emt 0:00:09]} 19. Bb3 {[%emt 0:02:56]} Nc4 {[%emt 0:02:21]} 20. Rb1 {[%emt 0:03:06]} Rc8 21. Bxc4 {[%emt 0:05:36]} bxc4 {[%emt 0:06:06]} 22. Bd2 {[%emt 0:06:24]} Re8 {[%emt 0:11:53]} 23. Bc3 {[%emt 0:01:40]} Be5 {[%emt 0:12:09]} 24. Qd2 {[%emt 0:23:44]} Qh4 {[%emt 0:04:55]} 25. Nf1 {[%emt 0:03:56]} Rc5 {[%emt 0:05:24]} 26. Bxe5 {[%emt 0:01:21]} dxe5 {[%emt 0:00:09]} 27. Qc3 {[%emt 0:00:21]} Qe7 {[%emt 0:07:31]} 28. Rbd1 {[%emt 0:01:16]} f6 {[%emt 0:01:15]} 29. Rd2 {[%emt 0:00:15]} Rd8 {[%emt 0:02:08]} 30. Red1 {[%emt 0:00:21]} Rxd2 {[%emt 0:00:34]} 31. Rxd2 {[%emt 0:00:12]} Kf7 {[%emt 0:04:03]} 32. Ne3 {[%emt 0:01:08]} g6 {[%emt 0:05:54]} 33. Nd5 {[%emt 0:02:30]} 1/2-1/2

[Event "4th EFE Metz Festival-WIM"]
[Site "Metz"]
[Date "2018.07.28"]
[Round "8"]
[White "Broly, Mathilde"]
[Black "Thomas, Anysia"]
[Result "0-1"]
[ECO "B39"]
[WhiteElo "2149"]
[BlackElo "2156"]
[Annotator "NA"]
[PlyCount "72"]
[EventDate "2018.07.22"]
[EventType "tourn"]
[EventCountry "FRA"]
[SourceTitle "playchess.com"]
[Source "ChessBase"]
[SourceQuality "1"]
[TimeControl "5400+30"]

1. e4 {[%emt 0:00:00]} c5 {[%emt 0:01:56]} 2. Nf3 {[%emt 0:00:57]} g6 {[%emt 0:00:05]} 3. d4 {[%emt 0:04:24]} Bg7 {[%emt 0:01:27]} 4. c4 {[%emt 0:10:09]} cxd4 {[%emt 0:00:12]} 5. Nxd4 {[%emt 0:00:12]} Nc6 {[%emt 0:00:10]} 6. Be3 {[%emt 0:01:29]} Nf6 {[%emt 0:00:20]} 7. Nc3 {[%emt 0:00:31]} Ng4 {[%emt 0:00:53]} 8. Qxg4 {[%emt 0:00:07]} Nxd4 {[%emt 0:00:04]} 9. Qd1 {[%emt 0:00:12]} e5 {[%emt 0:00:04]} 10. Nb5 {[%emt 0:00:38]} O-O {[%emt 0:00:42]} 11. Qd2 {[%emt 0:11:42]} Qh4 {[%emt 0:09:00]} 12. Bd3 {[%emt 0:02:43]} d5 {[%emt 0:00:19]} 13. cxd5 {[%emt 0:16:23]} Nxb5 {[%emt 0:12:36]} 14. Bxb5 {[%emt 0:00:12]} Qxe4 {[%emt 0:00:05]} 15. f3 {[%emt 0:00:11]} Qh4+ {[%emt 0:01:38]} 16. Bf2 {[%emt 0:01:40]} Qf4 {[%emt 0:10:17]} 17. Be3 {[%emt 0:10:46]} Qh4+ {[%emt 0:10:00]} 18. g3 {[%emt 0:00:33]} Qf6 {[%emt 0:05:30]} 19. O-O {[%emt 0:01:33]} Bh3 {[%emt 0:01:03]} 20. Rf2 {[%emt 0:00:08]} a6 {[%emt 0:02:29]} 21. Ba4 {[%emt 0:01:53]} Qd6 {[%emt 0:07:00]} 22. b4 {[%emt 0:01:01]} e4 {[%emt 0:22:17]} 23. Re1 {[%emt 0:01:11]} Rfc8 {[%emt 0:01:18]} 24. Bc5 {[%emt 0:00:32]} Rxc5 {[%emt 0:01:08]} 25. bxc5 {[%emt 0:04:09]} Qxc5 {[%emt 0:00:05]} 26. fxe4 {[%emt 0:02:10]} Bd4 {[%emt 0:03:03]} 27. Qf4 {[%emt 0:06:38]} Qb4 {[%emt 0:01:36]} 28. Rc1 {[%emt 0:01:33]} Bxf2+ {[%emt 0:00:27]} 29. Kxf2 {[%emt 0:04:14]} Qxa4 {[%emt 0:00:14]} 30. Rc7 {[%emt 0:00:48]} Qxa2+ {[%emt 0:01:18]} 31. Ke3 {[%emt 0:00:12]} Qa3+ {[%emt 0:00:26]} 32. Kd4 {[%emt 0:00:45]} Qa1+ {[%emt 0:00:53]} 33. Kc5 {[%emt 0:01:06]} Qa3+ {[%emt 0:02:35]} 34. Kd4 {[%emt 0:00:05]} Qb4+ {[%emt 0:00:38]} 35. Ke5 {[%emt 0:02:30]} f6+ {[%emt 0:00:42]} 36. Kxf6 {[%emt 0:02:53]} Rf8+ {[%emt 0:00:05]} 0-1

[Event "4th EFE Metz Festival-WIM"]
[Site "Metz"]
[Date "2018.07.28"]
[Round "8"]
[White "Muetsch, Annmarie"]
[Black "Afraoui, Anaelle"]
[Result "0-1"]
[ECO "B31"]
[WhiteElo "2146"]
[BlackElo "2056"]
[Annotator "NA"]
[PlyCount "122"]
[EventDate "2018.07.22"]
[EventType "tourn"]
[EventCountry "FRA"]
[SourceTitle "playchess.com"]
[Source "ChessBase"]
[SourceQuality "1"]
[TimeControl "5400+30"]

1. e4 {[%emt 0:00:00]} c5 {[%emt 0:00:14]} 2. Nf3 {[%emt 0:00:00]} Nc6 {[%emt 0:00:06]} 3. Bb5 {[%emt 0:00:00]} g6 {[%emt 0:00:14]} 4. Bxc6 {[%emt 0:00:00]} dxc6 {[%emt 0:00:08]} 5. d3 {[%emt 0:00:08]} Bg7 {[%emt 0:00:09]} 6. h3 {[%emt 0:00:06]} Nf6 {[%emt 0:00:30]} 7. Nc3 {[%emt 0:00:14]} Nd7 {[%emt 0:00:22]} 8. Be3 {[%emt 0:00:30]} e5 {[%emt 0:00:17]} 9. Qd2 {[%emt 0:00:11]} h6 {[%emt 0:00:09]} 10. O-O {[%emt 0:01:21]} Qe7 {[%emt 0:00:15]} 11. Nh2 {[%emt 0:00:24]} Nf8 {[%emt 0:00:12]} 12. f4 {[%emt 0:00:20]} exf4 {[%emt 0:00:06]} 13. Bxf4 {[%emt 0:00:05]} Ne6 {[%emt 0:00:15]} 14. Bg3 {[%emt 0:00:23]} Qg5 {[%emt 0:06:42]} 15. Qe1 {[%emt 0:19:36]} Nd4 {[%emt 0:12:01]} 16. Rc1 O-O {[%emt 0:10:51]} 17. Bf4 {[%emt 0:10:56]} Qe7 {[%emt 0:07:55]} 18. Qg3 {[%emt 0:08:33]} Rd8 {[%emt 0:04:53]} 19. Ng4 {[%emt 0:02:37]} h5 {[%emt 0:06:01]} 20. Nh2 {[%emt 0:08:08]} h4 {[%emt 0:07:54]} 21. Qf2 {[%emt 0:03:49]} g5 {[%emt 0:02:13]} 22. Be3 {[%emt 0:05:07]} Be5 {[%emt 0:01:39]} 23. Nf3 {[%emt 0:10:35]} Nxf3+ {[%emt 0:04:59]} 24. Qxf3 {[%emt 0:00:14]} f6 {[%emt 0:01:00]} 25. Nd1 {[%emt 0:03:38]} Be6 {[%emt 0:03:45]} 26. b3 {[%emt 0:00:16]} Rf8 {[%emt 0:02:21]} 27. Nf2 {[%emt 0:02:00]} Bc7 {[%emt 0:02:39]} 28. Ng4 {[%emt 0:04:05]} Qd6 {[%emt 0:10:48]} 29. g3 {[%emt 0:11:15]} b6 {[%emt 0:08:25]} 30. a4 {[%emt 0:05:20]} Bxg4 {[%emt 0:00:51]} 31. Qxg4 {[%emt 0:00:25]} Qxg3+ {[%emt 0:00:41]} 32. Qxg3 {[%emt 0:00:05]} Bxg3 {[%emt 0:00:37]} 33. a5 {[%emt 0:00:34]} Kg7 {[%emt 0:01:18]} 34. Ra1 {[%emt 0:01:56]} Be5 {[%emt 0:00:27]} 35. Ra2 {[%emt 0:01:07]} Bc3 {[%emt 0:00:19]} 36. Rf5 {[%emt 0:00:53]} Kg6 {[%emt 0:02:43]} 37. Kg2 {[%emt 0:00:42]} Rfe8 {[%emt 0:01:58]} 38. Kf3 {[%emt 0:01:25]} Bd4 {[%emt 0:02:13]} 39. Bd2 {[%emt 0:00:48]} Red8 {[%emt 0:00:41]} 40. Ke2 {[%emt 0:00:38]} Re8 {[%emt 0:00:48]} 41. Kf3 {[%emt 0:00:55]} Rab8 {[%emt 0:00:15]} 42. axb6 {[%emt 0:01:02]} axb6 {[%emt 0:00:01]} 43. Ra6 {[%emt 0:00:11]} Re6 {[%emt 0:00:46]} 44. Ke2 {[%emt 0:00:50]} b5 {[%emt 0:00:48]} 45. Kf3 {[%emt 0:00:31]} Rbe8 {[%emt 0:00:20]} 46. Ba5 {[%emt 0:00:32]} c4 {[%emt 0:00:40]} 47. bxc4 {[%emt 0:00:21]} bxc4 {[%emt 0:00:16]} 48. Bc7 {[%emt 0:00:34]} cxd3 {[%emt 0:00:34]} 49. cxd3 {[%emt 0:00:05]} c5 {[%emt 0:00:10]} 50. Ra4 {[%emt 0:00:49]} Rc6 {[%emt 0:00:25]} 51. Bh2 {[%emt 0:00:24]} Rb6 {[%emt 0:00:21]} 52. Kg4 {[%emt 0:00:44]} Rb2 {[%emt 0:00:31]} 53. Bd6 {[%emt 0:00:30]} Rc8 {[%emt 0:01:20]} 54. Rc4 {[%emt 0:00:11]} Ra8 {[%emt 0:00:33]} 55. Rcxc5 {[%emt 0:00:55]} Raa2 {[%emt 0:00:45]} 56. Rxg5+ {[%emt 0:00:11]} fxg5 {[%emt 0:00:18]} 57. Rxg5+ {[%emt 0:00:07]} Kf7 {[%emt 0:00:15]} 58. Rf5+ {[%emt 0:00:27]} Ke6 {[%emt 0:00:07]} 59. Bf4 {[%emt 0:00:20]} Rg2+ {[%emt 0:00:47]} 60. Kxh4 {[%emt 0:00:39]} Ra8 {[%emt 0:00:12]} 61. Rh5 {[%emt 0:00:45]} Bf2+ {[%emt 0:00:09]} 0-1